fUST/lending_fUST_20260623
["ID","MTS","AMOUNT","RATE_DAILY","PERIOD"]
[426109843,1782147049000,-500.0,0.00017534,2]
[426109841,1782147049000,-500.0,0.00017534,2]
[426109831,1782147049000,-500.0,0.00017534,2]
[426109829,1782147049000,-500.0,0.00017534,2]
[426109833,1782147049000,-500.0,0.00017534,2]
[426109839,1782147049000,-500.0,0.00017534,2]
[426109835,1782147049000,-500.0,0.00017534,2]
[426109862,1782147049000,-500.0,0.00017534,2]
[426109853,1782147049000,-500.0,0.00017534,2]
[426109856,1782147049000,-500.0,0.00017534,2]
[426109860,1782147049000,-500.0,0.00017534,2]
[426109858,1782147049000,-500.0,0.00017534,2]
[426109866,1782147049000,-502.3173253,0.00017534,2]
[426109871,1782147049000,-207.62,0.00017534,2]
[426109864,1782147049000,-500.0,0.00017534,2]
[426109867,1782147049000,-500.0,0.00017534,2]
[426109877,1782147049000,-500.0,0.00017534,2]
[426109873,1782147049000,-1650.96,0.00017534,2]
[426109869,1782147049000,-500.0,0.00017534,2]
[426109819,1782147049000,-500.0,0.00017534,2]
[426109849,1782147049000,-500.0,0.00017534,2]
[426109825,1782147049000,-500.0,0.00017534,2]
[426109792,1782147049000,-1650.96,0.0001726,2]
[426109816,1782147049000,-500.0,0.00017534,2]
[426109763,1782147049000,-500.0,0.0001726,2]
[426109775,1782147049000,-500.0,0.0001726,2]
[426109777,1782147049000,-500.0,0.0001726,2]
[426109876,1782147049000,-344.69613717,0.00017534,2]
[426109765,1782147049000,-368.30849221,0.0001726,2]
[426109767,1782147049000,-500.0,0.0001726,2]
[426109773,1782147049000,-500.0,0.0001726,2]
[426109769,1782147049000,-500.0,0.0001726,2]
[426109771,1782147049000,-510.35957862,0.0001726,2]
[426109781,1782147049000,-500.0,0.0001726,2]
[426109783,1782147049000,-500.0,0.0001726,2]
[426109785,1782147049000,-280.41434113,0.0001726,2]
[426109821,1782147049000,-500.0,0.00017534,2]
[426109787,1782147049000,-500.0,0.0001726,2]
[426109802,1782147049000,-500.0,0.00017534,2]
[426109804,1782147049000,-500.0,0.00017534,2]
[426109797,1782147049000,-500.0,0.0001726,2]
[426109806,1782147049000,-500.0,0.00017534,2]
[426109793,1782147049000,-500.0,0.0001726,2]
[426109795,1782147049000,-500.0,0.0001726,2]
[426109800,1782147049000,-500.0,0.00017534,2]
[426109810,1782147049000,-500.0,0.00017534,2]
[426109812,1782147049000,-500.0,0.00017534,2]
[426109827,1782147049000,-500.0,0.00017534,2]
[426109814,1782147049000,-500.0,0.00017534,2]
[426109808,1782147049000,-500.0,0.00017534,2]
[426109789,1782147049000,-500.0,0.0001726,2]
[426109879,1782147049000,-204.48,0.00017534,2]
[426109779,1782147049000,-500.0,0.0001726,2]
[426109883,1782147049000,-1000.0,0.00017807,2]
[426109952,1782147049000,-500.0,0.00017808,2]
[426109960,1782147049000,-500.0,0.00017808,2]
[426109954,1782147049000,-500.0,0.00017808,2]
[426109956,1782147049000,-500.0,0.00017808,2]
[426109958,1782147049000,-500.0,0.00017808,2]
[426109966,1782147049000,-500.0,0.00017808,2]
[426109962,1782147049000,-500.0,0.00017808,2]
[426109964,1782147049000,-1650.96,0.00017808,2]
[426109970,1782147049000,-441.66414808,0.00018082,2]
[426109974,1782147049000,-500.0,0.00018082,2]
[426109976,1782147049000,-500.0,0.00018082,2]
[426109972,1782147049000,-500.0,0.00018082,2]
[426109950,1782147049000,-500.0,0.00017808,2]
[426109980,1782147049000,-500.0,0.00018082,2]
[426109982,1782147049000,-500.0,0.00018082,2]
[426109988,1782147049000,-500.0,0.00018082,2]
[426109990,1782147049000,-500.0,0.00018082,2]
[426109978,1782147049000,-500.0,0.00018082,2]
[426109992,1782147049000,-500.0,0.00018082,2]
[426109984,1782147049000,-500.0,0.00018082,2]
[426109986,1782147049000,-500.0,0.00018082,2]
[426109994,1782147049000,-623.87,0.00018082,2]
[426109999,1782147049000,-500.0,0.00018082,2]
[426110001,1782147049000,-500.0,0.00018082,2]
[426109996,1782147049000,-500.0,0.00018082,2]
[426110003,1782147049000,-349.83556641,0.00018082,2]
[426109968,1782147049000,-500.0,0.00018082,2]
[426109948,1782147049000,-500.0,0.00017808,2]
[426109881,1782147049000,-1000.0,0.00017807,2]
[426109942,1782147049000,-500.0,0.00017808,2]
[426109946,1782147049000,-500.0,0.00017808,2]
[426109886,1782147049000,-1000.0,0.00017807,2]
[426109888,1782147049000,-1000.0,0.00017807,2]
[426109889,1782147049000,-1000.0,0.00017807,2]
[426109893,1782147049000,-500.0,0.00017808,2]
[426109891,1782147049000,-500.0,0.00017808,2]
[426109909,1782147049000,-500.0,0.00017808,2]
[426109905,1782147049000,-500.0,0.00017808,2]
[426109897,1782147049000,-500.0,0.00017808,2]
[426109895,1782147049000,-500.0,0.00017808,2]
[426109903,1782147049000,-500.0,0.00017808,2]
[426109901,1782147049000,-500.0,0.00017808,2]
[426109907,1782147049000,-500.0,0.00017808,2]
[426109899,1782147049000,-500.0,0.00017808,2]
[426109913,1782147049000,-500.0,0.00017808,2]
[426109944,1782147049000,-500.0,0.00017808,2]
[426109937,1782147049000,-500.0,0.00017808,2]
[426109933,1782147049000,-500.0,0.00017808,2]
[426109911,1782147049000,-500.0,0.00017808,2]
[426109927,1782147049000,-500.0,0.00017808,2]
[426109931,1782147049000,-500.0,0.00017808,2]
[426109940,1782147049000,-500.0,0.00017808,2]
[426109935,1782147049000,-500.0,0.00017808,2]
[426109923,1782147049000,-500.0,0.00017808,2]
[426109925,1782147049000,-500.0,0.00017808,2]
[426109921,1782147049000,-500.0,0.00017808,2]
[426109919,1782147049000,-470.57848373,0.00017808,2]
[426109929,1782147049000,-500.0,0.00017808,2]
[426110874,1782147663000,-439.362564,0.00022696,14]
[426110869,1782147663000,-158.0,0.0002148,30]
[426110871,1782147663000,-172.0,0.00022192,7]
[426110870,1782147663000,-212.925265,0.00021811,30]
[426110872,1782147663000,-444.042109,0.00022286,14]
[426110873,1782147663000,-158.0,0.0002248,30]
[426110875,1782147663000,-200.0,0.000229,28]
[426110882,1782147663000,-158.0,0.00022959,120]
[426110876,1782147663000,-156.0,0.00022959,120]
[426110878,1782147663000,-156.0,0.00022959,120]
[426110879,1782147663000,-154.0,0.00022959,120]
[426110880,1782147663000,-165.0,0.00022959,120]
[426110881,1782147663000,-169.0,0.00022959,120]
[426110883,1782147663000,-158.0,0.00022959,120]
[426110884,1782147663000,-155.0,0.00022959,120]
[426110877,1782147663000,-161.0,0.00022959,120]
[426110899,1782147664000,-169.0,0.00023959,120]
[426110901,1782147664000,-158.0,0.00023959,120]
[426110898,1782147664000,-165.0,0.00023959,120]
[426110896,1782147664000,-156.0,0.00023959,120]
[426110895,1782147664000,-161.0,0.00023959,120]
[426110894,1782147664000,-156.0,0.00023959,120]
[426110892,1782147664000,-158.0,0.0002348,30]
[426110890,1782147664000,-151.0,0.000233,9]
[426110891,1782147664000,-177.616843,0.000234,14]
[426110889,1782147664000,-151.0,0.000231,7]
[426110888,1782147664000,-188.444861,0.00023093,14]
[426110887,1782147664000,-172.0,0.00023014,7]
[426110886,1782147664000,-500.0,0.00022962,8]
[426110885,1782147664000,-500.0,0.00022962,8]
[426110900,1782147664000,-158.0,0.00023959,120]
[426110893,1782147664000,-600.0,0.00023912,10]
[426110904,1782147664000,-173.0,0.00024164,7]
[426110897,1782147664000,-154.0,0.00023959,120]
[426110903,1782147664000,-166.1322356,0.00024,120]
[426110921,1782147664000,-156.0,0.00025959,120]
[426110920,1782147664000,-600.0,0.000255,14]
[426110918,1782147664000,-1470.73342104,0.00025,15]
[426110919,1782147664000,-171.0,0.00025408,120]
[426110917,1782147664000,-871.14141399,0.00025,30]
[426110915,1782147664000,-158.0,0.00024959,120]
[426110914,1782147664000,-158.0,0.00024959,120]
[426110916,1782147664000,-200.0,0.00024978,120]
[426110902,1782147664000,-155.0,0.00023959,120]
[426110912,1782147664000,-154.0,0.00024959,120]
[426110911,1782147664000,-156.0,0.00024959,120]
[426110910,1782147664000,-161.0,0.00024959,120]
[426110909,1782147664000,-341.886808,0.00024935,14]
[426110907,1782147664000,-158.0,0.0002448,30]
[426110908,1782147664000,-2000.0,0.00024691,7]
[426110906,1782147664000,-2126.0,0.00024394,7]
[426110905,1782147664000,-171.0,0.00024198,120]
[426110913,1782147664000,-169.0,0.00024959,120]
[426110933,1782147665000,-158.0,0.00026959,120]
[426110932,1782147665000,-154.0,0.00026959,120]
[426110935,1782147665000,-600.0,0.00027,14]
[426110937,1782147665000,-200.0,0.00027,120]
[426110938,1782147665000,-258.53047,0.00027,120]
[426110934,1782147665000,-158.0,0.00026959,120]
[426110936,1782147665000,-440.06811279,0.00027,120]
[426110931,1782147665000,-200.0,0.00026936,120]
[426110927,1782147665000,-281.17,0.00026261,14]
[426110928,1782147665000,-720.0,0.00026303,30]
[426110929,1782147665000,-171.0,0.00026678,120]
[426110925,1782147665000,-40517.26533781,0.00026,10]
[426110924,1782147665000,-158.0,0.00025959,120]
[426110926,1782147665000,-417.15472785,0.00026,10]
[426110923,1782147665000,-158.0,0.00025959,120]
[426110940,1782147665000,-200.0,0.00027106,120]
[426110930,1782147665000,-160.0,0.00026813,7]
[426110922,1782147665000,-154.0,0.00025959,120]
[426110939,1782147665000,-1000.0,0.00027,120]
[426110942,1782147665000,-160.0,0.00027392,8]
[426110941,1782147665000,-246.1089899,0.0002739,7]
[426110958,1782147665000,-175.39886928,0.000288,7]
[426110957,1782147665000,-261.64,0.00028732,30]
[426110956,1782147665000,-160.0,0.00028549,10]
[426110955,1782147665000,-319.19676204,0.0002849,120]
[426110952,1782147665000,-1078.89,0.00028117,30]
[426110951,1782147665000,-171.0,0.00028012,120]
[426110953,1782147665000,-200.0,0.00028121,120]
[426110954,1782147665000,-200.0,0.00028377,120]
[426110950,1782147665000,-1000.0,0.00028,120]
[426110948,1782147665000,-300.0,0.00028,15]
[426110949,1782147665000,-1621.84134818,0.00028,120]
[426110944,1782147665000,-200.0,0.000279,120]
[426110946,1782147665000,-158.0,0.00027959,120]
[426110943,1782147665000,-172.0,0.00027616,14]
[426110945,1782147665000,-158.0,0.00027959,120]
[426110947,1782147665000,-160.0,0.00027971,9]
[426110970,1782147666000,-160.0,0.00029128,11]
[426110974,1782147666000,-1064.0,0.00029589,14]
[426110973,1782147666000,-1078.89,0.00029529,30]
[426110975,1782147666000,-397.73595325,0.00029628,30]
[426110972,1782147666000,-171.0,0.00029412,120]
[426110971,1782147666000,-220.52307692,0.00029191,8]
[426110969,1782147666000,-203.276678,0.000291,7]
[426110968,1782147666000,-151.0,0.000291,7]
[426110960,1782147666000,-864.0,0.00028933,30]
[426110965,1782147666000,-1064.0,0.00029019,14]
[426110967,1782147666000,-151.0,0.000291,7]
[426110964,1782147666000,-417.15472785,0.00029,120]
[426110963,1782147666000,-500.0,0.00029,120]
[426110961,1782147666000,-158.0,0.00028959,120]
[426110962,1782147666000,-172.0,0.00028997,14]
[426110959,1782147666000,-1078.89,0.00028823,30]
[426110966,1782147666000,-24563.35521601,0.000291,30]
[426110979,1782147666000,-700.0,0.0003,14]
[426110978,1782147666000,-160.0,0.00029707,12]
[426110977,1782147666000,-200.0,0.00029649,120]
[426110976,1782147666000,-220.52307692,0.00029639,11]
[426110995,1782147666000,-362153.54377318,0.0003,7]
[426110993,1782147666000,-276.0,0.0003,30]
[426110994,1782147666000,-221.19,0.0003,90]
[426110991,1782147666000,-276.53350536,0.0003,120]
[426110989,1782147666000,-207.20809941,0.0003,120]
[426110988,1782147666000,-656.46539867,0.0003,120]
[426110987,1782147666000,-584.47238852,0.0003,120]
[426110992,1782147666000,-300.0,0.0003,30]
[426110983,1782147666000,-420.14405007,0.0003,10]
[426110980,1782147666000,-14225.12276105,0.0003,7]
[426110981,1782147666000,-5000.0,0.0003,15]
[426110990,1782147666000,-3280.28404386,0.0003,120]
[426110982,1782147666000,-500.0,0.0003,10]
[426110985,1782147666000,-1633.92395469,0.0003,10]
[426110986,1782147666000,-500.0,0.0003,120]
[426110984,1782147666000,-8538.14156876,0.0003,10]
[426110997,1782147667000,-417.15472785,0.0003,30]
[426110996,1782147667000,-160.0,0.0003,30]
[426110998,1782147667000,-417.15472785,0.0003,7]
[426110999,1782147667000,-1031.0,0.0003,7]
[426111000,1782147667000,-220.52307692,0.00030087,14]
[426111001,1782147667000,-2431.73002494,0.000301,10]
[426111002,1782147667000,-204.23776574,0.000301,120]
[426111005,1782147667000,-500.0,0.00030136,30]
[426111004,1782147667000,-397.4370373,0.0003013,120]
[426111007,1782147667000,-500.0,0.00030136,30]
[426111009,1782147667000,-328.1658245,0.00030137,120]
[426111008,1782147667000,-197.68366739,0.00030136,30]
[426111003,1782147667000,-472.83581099,0.0003013,120]
[426111006,1782147667000,-500.0,0.00030136,30]
[426111010,1782147722000,3000.0,0.00022957,120]
[426111011,1782147725000,190.0,0.0002,120]
[426111012,1782147743000,814.37,0.00022957,31]
[426111014,1782147744000,650.6447977,0.00022957,110]
[426111013,1782147744000,565.93786643,0.00022957,120]
[426111025,1782147745000,502.11953627,0.00022957,120]
[426111024,1782147745000,565.93786643,0.00022957,120]
[426111022,1782147745000,502.11953627,0.00022957,120]
[426111023,1782147745000,650.6447977,0.00022957,110]
[426111021,1782147745000,565.93786643,0.00022957,120]
[426111020,1782147745000,1930.85393058,0.00022957,120]
[426111019,1782147745000,502.11953627,0.00022957,120]
[426111018,1782147745000,650.6447977,0.00022957,110]
[426111016,1782147745000,1930.85393058,0.00022957,120]
[426111017,1782147745000,565.93786643,0.00022957,120]
[426111015,1782147745000,211.95868236,0.00022957,30]
[426111026,1782147746000,1930.85393058,0.00022957,120]
[426111027,1782147746000,565.93786643,0.00022957,120]
[426111028,1782147746000,650.6447977,0.00022957,110]
[426111029,1782147746000,502.11953627,0.00022957,120]
[426111034,1782147746000,1930.85393058,0.00022957,120]
[426111031,1782147746000,565.93786643,0.00022957,120]
[426111032,1782147746000,650.6447977,0.00022957,110]
[426111033,1782147746000,502.11953627,0.00022957,120]
[426111035,1782147746000,502.11953627,0.00022957,120]
[426111030,1782147746000,1930.85393058,0.00022957,120]
[426111040,1782147747000,1930.85393058,0.00022957,120]
[426111036,1782147747000,650.6447977,0.00022957,110]
[426111038,1782147747000,565.93786643,0.00022957,120]
[426111039,1782147747000,502.11953627,0.00022957,120]
[426111037,1782147747000,1930.85393058,0.00022957,120]
[426111042,1782147747000,565.93786643,0.00022957,120]
[426111043,1782147747000,1930.85393058,0.00022957,120]
[426111044,1782147747000,650.6447977,0.00022957,110]
[426111045,1782147747000,502.11953627,0.00022957,120]
[426111046,1782147747000,565.93786643,0.00022957,120]
[426111041,1782147747000,650.6447977,0.00022957,110]
[426111048,1782147748000,1930.85393058,0.00022957,120]
[426111047,1782147748000,650.6447977,0.00022957,110]
[426111049,1782147748000,502.11953627,0.00022957,120]
[426111050,1782147748000,565.93786643,0.00022957,120]
[426111051,1782147748000,1930.85393058,0.00022957,120]
[426111055,1782147748000,1930.85393058,0.00022957,120]
[426111053,1782147748000,502.11953627,0.00022957,120]
[426111054,1782147748000,565.93786643,0.00022957,120]
[426111052,1782147748000,650.6447977,0.00022957,110]
[426111056,1782147748000,502.11953627,0.00022957,120]
[426111057,1782147748000,650.6447977,0.00022957,110]
[426111058,1782147748000,565.93786643,0.00022957,120]
[426111059,1782147749000,650.6447977,0.00022957,110]
[426111060,1782147749000,1930.85393058,0.00022957,120]
[426111061,1782147749000,502.11953627,0.00022957,120]
[426111062,1782147749000,565.93786643,0.00022957,120]
[426111064,1782147749000,1930.85393058,0.00022957,120]
[426111065,1782147749000,565.93786643,0.00022957,120]
[426111066,1782147749000,502.11953627,0.00022957,120]
[426111067,1782147749000,1930.85393058,0.00022957,120]
[426111068,1782147749000,565.93786643,0.00022957,120]
[426111063,1782147749000,650.6447977,0.00022957,110]
[426111072,1782147750000,502.11953627,0.00022957,120]
[426111070,1782147750000,565.93786643,0.00022957,120]
[426111071,1782147750000,1930.85393058,0.00022957,120]
[426111069,1782147750000,502.11953627,0.00022957,120]
[426111074,1782147750000,650.6447977,0.00022957,110]
[426111075,1782147750000,1930.85393058,0.00022957,120]
[426111076,1782147750000,565.93786643,0.00022957,120]
[426111077,1782147750000,650.6447977,0.00022957,110]
[426111073,1782147750000,565.93786643,0.00022957,120]
[426111078,1782147751000,1930.85393058,0.00022957,120]
[426111080,1782147751000,1930.85393058,0.00022957,120]
[426111079,1782147751000,565.93786643,0.00022957,120]
[426111082,1782147751000,1930.85393058,0.00022957,120]
[426111081,1782147751000,565.93786643,0.00022957,120]
[426111083,1782147751000,565.93786643,0.00022957,120]
[426111084,1782147751000,1930.85393058,0.00022957,120]
[426111089,1782147752000,565.93786643,0.00022957,120]
[426111088,1782147752000,1930.85393058,0.00022957,120]
[426111087,1782147752000,565.93786643,0.00022957,120]
[426111086,1782147752000,1930.85393058,0.00022957,120]
[426111085,1782147752000,565.93786643,0.00022957,120]
[426111090,1782147753000,1930.85393058,0.00022957,120]
[426111091,1782147753000,565.93786643,0.00022957,120]
[426111092,1782147753000,1930.85393058,0.00022957,120]
[426111094,1782147753000,1930.85393058,0.00022957,120]
[426111095,1782147753000,565.93786643,0.00022957,120]
[426111093,1782147753000,565.93786643,0.00022957,120]
[426111096,1782147754000,1930.85393058,0.00022957,120]
[426111097,1782147754000,565.93786643,0.00022957,120]
[426111100,1782147754000,1930.85393058,0.00022957,120]
[426111099,1782147754000,565.93786643,0.00022957,120]
[426111101,1782147754000,565.93786643,0.00022957,120]
[426111098,1782147754000,1930.85393058,0.00022957,120]
[426111104,1782147755000,1930.85393058,0.00022957,120]
[426111102,1782147755000,1930.85393058,0.00022957,120]
[426111103,1782147755000,1930.85393058,0.00022957,120]
[426111107,1782147756000,1930.85393058,0.00022957,120]
[426111106,1782147756000,1930.85393058,0.00022957,120]
[426111105,1782147756000,1930.85393058,0.00022957,120]
[426111110,1782147757000,1930.85393058,0.00022957,120]
[426111109,1782147757000,1930.85393058,0.00022957,120]
[426111108,1782147757000,1930.85393058,0.00022957,120]
[426111111,1782147758000,1930.85393058,0.00022957,120]
[426111112,1782147758000,1930.85393058,0.00022957,120]
[426111113,1782147758000,1930.85393058,0.00022957,120]
[426111114,1782147759000,1930.85393058,0.00022957,120]
[426111117,1782147759000,1930.85393058,0.00022957,120]
[426111116,1782147759000,1930.85393058,0.00022957,120]
[426111115,1782147759000,1930.85393058,0.00022957,120]
[426111118,1782147760000,1930.85393058,0.00022957,120]
[426111119,1782147760000,1930.85393058,0.00022957,120]
[426111122,1782147761000,1930.85393058,0.00022957,120]
[426111121,1782147761000,1930.85393058,0.00022957,120]
[426111120,1782147761000,1930.85393058,0.00022957,120]
[426111123,1782147762000,1930.85393058,0.00022957,120]
[426111124,1782147786000,3000.0,0.00022957,120]
[426111125,1782147819000,336.0,0.00022967,30]
[426111126,1782147819000,479.999999,0.00017808,120]
[426111127,1782147819000,1570.0,0.00022967,120]
[426111128,1782147819000,385.0,0.00022967,120]
[426111129,1782147841000,-591.52461939,0.00010395,2]
[426111130,1782147845000,306.31216238,0.00011,13]
[426111131,1782147845000,204.0,0.0002,120]
[426111134,1782147863000,165.54998,0.00014478,119]
[426111133,1782147863000,165.54998,0.00014478,80]
[426111132,1782147863000,165.54998,0.00014478,41]
[426111135,1782147950000,500.0,0.00022967,120]
[426111136,1782147951000,525.18703175,0.00022967,120]
[426111148,1782147985000,155.45959792,0.00022967,120]
[426111137,1782147985000,328.16734481,0.00022967,110]
[426111138,1782147985000,155.45959792,0.00022967,120]
[426111139,1782147985000,1322.55445191,0.00022967,120]
[426111141,1782147985000,155.45959792,0.00022967,120]
[426111140,1782147985000,233.45449732,0.00022967,120]
[426111143,1782147985000,328.16734481,0.00022967,110]
[426111144,1782147985000,155.45959792,0.00022967,120]
[426111145,1782147985000,1322.55445191,0.00022967,120]
[426111146,1782147985000,328.16734481,0.00022967,110]
[426111147,1782147985000,233.45449732,0.00022967,120]
[426111142,1782147985000,1322.55445191,0.00022967,120]
[426111149,1782147986000,328.16734481,0.00022967,110]
[426111154,1782147986000,155.45959792,0.00022967,120]
[426111151,1782147986000,233.45449732,0.00022967,120]
[426111153,1782147986000,328.16734481,0.00022967,110]
[426111150,1782147986000,1322.55445191,0.00022967,120]
[426111157,1782147986000,328.16734481,0.00022967,110]
[426111155,1782147986000,233.45449732,0.00022967,120]
[426111158,1782147986000,155.45959792,0.00022967,120]
[426111152,1782147986000,1322.55445191,0.00022967,120]
[426111156,1782147986000,1322.55445191,0.00022967,120]
[426111159,1782147986000,233.45449732,0.00022967,120]
[426111166,1782147987000,1322.55445191,0.00022967,120]
[426111165,1782147987000,328.16734481,0.00022967,110]
[426111164,1782147987000,233.45449732,0.00022967,120]
[426111163,1782147987000,1322.55445191,0.00022967,120]
[426111162,1782147987000,328.16734481,0.00022967,110]
[426111161,1782147987000,233.45449732,0.00022967,120]
[426111160,1782147987000,1322.55445191,0.00022967,120]
[426111172,1782147988000,1322.55445191,0.00022967,120]
[426111171,1782147988000,233.45449732,0.00022967,120]
[426111170,1782147988000,1322.55445191,0.00022967,120]
[426111169,1782147988000,233.45449732,0.00022967,120]
[426111168,1782147988000,1322.55445191,0.00022967,120]
[426111167,1782147988000,233.45449732,0.00022967,120]
[426111174,1782147989000,1322.55445191,0.00022967,120]
[426111173,1782147989000,233.45449732,0.00022967,120]
[426111176,1782147989000,1322.55445191,0.00022967,120]
[426111175,1782147989000,233.45449732,0.00022967,120]
[426111177,1782147989000,233.45449732,0.00022967,120]
[426111178,1782147990000,233.45449732,0.00022967,120]
[426111179,1782147990000,1322.55445191,0.00022967,120]
[426111181,1782147990000,1322.55445191,0.00022967,120]
[426111182,1782147990000,1322.55445191,0.00022967,120]
[426111180,1782147990000,233.45449732,0.00022967,120]
[426111185,1782147991000,1322.55445191,0.00022967,120]
[426111184,1782147991000,1322.55445191,0.00022967,120]
[426111183,1782147991000,1322.55445191,0.00022967,120]
[426111186,1782147992000,1322.55445191,0.00022967,120]
[426111187,1782147992000,1322.55445191,0.00022967,120]
[426111190,1782147993000,1322.55445191,0.00022967,120]
[426111189,1782147993000,1322.55445191,0.00022967,120]
[426111188,1782147993000,1322.55445191,0.00022967,120]
[426111192,1782147994000,1322.55445191,0.00022967,120]
[426111191,1782147994000,1322.55445191,0.00022967,120]
[426111195,1782147995000,1322.55445191,0.00022967,120]
[426111194,1782147995000,1322.55445191,0.00022967,120]
[426111193,1782147995000,1322.55445191,0.00022967,120]
[426111198,1782147996000,1322.55445191,0.00022967,120]
[426111197,1782147996000,1322.55445191,0.00022967,120]
[426111196,1782147996000,1322.55445191,0.00022967,120]
[426111199,1782147997000,1322.55445191,0.00022967,120]
[426111200,1782147997000,1322.55445191,0.00022967,120]
[426111201,1782147997000,1322.55445191,0.00022967,120]
[426111204,1782147998000,1322.55445191,0.00022967,120]
[426111203,1782147998000,1322.55445191,0.00022967,120]
[426111202,1782147998000,1322.55445191,0.00022967,120]
[426111207,1782147999000,1322.55445191,0.00022967,120]
[426111206,1782147999000,1322.55445191,0.00022967,120]
[426111205,1782147999000,1322.55445191,0.00022967,120]
[426111210,1782148000000,1322.55445191,0.00022967,120]
[426111209,1782148000000,1322.55445191,0.00022967,120]
[426111208,1782148000000,1322.55445191,0.00022967,120]
[426111212,1782148001000,1322.55445191,0.00022967,120]
[426111211,1782148001000,1322.55445191,0.00022967,120]
[426111214,1782148002000,1322.55445191,0.00022967,120]
[426111213,1782148002000,1322.55445191,0.00022967,120]
[426111215,1782148003000,1322.55445191,0.00022967,120]
[426111216,1782148025000,323.6,0.00022967,120]
[426111218,1782148099000,518.5313392,0.00011,13]
[426111219,1782148104000,155.4595979,0.00022967,120]
[426111220,1782148119000,336.0,0.00022982,30]
[426111268,1782148232000,-165.54998,0.00014478,2]
[426111266,1782148232000,-886.61714924,0.00013,2]
[426111269,1782148232000,-1000.0,0.00014625,2]
[426111267,1782148232000,-325.08711468,0.00013874,2]
[426111264,1782148232000,-151.0,0.00010526,2]
[426111258,1782148232000,-552.55305738,0.000105,2]
[426111262,1782148232000,-1985.44694262,0.000105,2]
[426111273,1782148232000,-160.259075,0.0001608,2]
[426111263,1782148232000,-167.20939649,0.000105,2]
[426111270,1782148232000,-183.939474,0.00015068,2]
[426111265,1782148232000,-156.188,0.00010959,2]
[426111271,1782148232000,-210.0,0.00015342,2]
[426111272,1782148232000,-7500.0,0.00016,2]
[426111275,1782148232000,-500.0,0.00016434,2]
[426111286,1782148232000,-291.32869523,0.00016438,2]
[426111277,1782148232000,-500.0,0.00016437,2]
[426111278,1782148232000,-500.0,0.00016438,2]
[426111276,1782148232000,-500.0,0.00016436,2]
[426111283,1782148232000,-230.84108979,0.00016438,2]
[426111281,1782148232000,-500.0,0.00016438,2]
[426111280,1782148232000,-500.0,0.00016438,2]
[426111282,1782148232000,-269.15891021,0.00016438,2]
[426111279,1782148232000,-500.0,0.00016438,2]
[426111284,1782148232000,-500.0,0.00016438,2]
[426111285,1782148232000,-500.0,0.00016438,2]
[426111274,1782148232000,-3519.46757198,0.00016338,2]
[426111307,1782148238000,-208.67130477,0.00016438,2]
[426111309,1782148238000,-500.0,0.00016438,2]
[426111308,1782148238000,-500.0,0.00016438,2]
[426111312,1782148238000,-500.0,0.00016438,2]
[426111311,1782148238000,-500.0,0.00016438,2]
[426111310,1782148238000,-500.0,0.00016438,2]
[426111328,1782148239000,-403.90012696,0.00016607,2]
[426111334,1782148239000,-500.0,0.00016607,2]
[426111336,1782148239000,-500.0,0.00016609,2]
[426111327,1782148239000,-500.0,0.00016508,2]
[426111335,1782148239000,-500.0,0.00016609,2]